bitfinex/quotes_SOLUSD_20241116
["timestamp","ask_amount","ask_price","bid_price","bid_amount"]
[1731798382552,22.95605888,214.68,214.64,6.1226]
[1731798382718,22.95605888,214.7,214.62,27.61525888]
[1731798382918,22.95605888,214.68,214.62,16.3076]
[1731798383418,22.95605888,214.69,214.62,39.26365888]
[1731798384749,22.95605888,214.69,214.64,16.3063]
[1731798384918,22.95605888,214.75,214.68,22.95605888]
[1731798385237,34.59365888,214.83,214.67,22.95605888]
[1731798385238,22.95605888,214.76,214.67,22.95605888]
[1731798385436,22.95605888,214.73,214.66,42.95605888]
[1731798386638,22.95605888,214.73,214.67,16.304]
[1731798387021,22.95605888,214.76,214.68,42.95605888]
[1731798387239,22.95605888,214.78,214.71,22.95605888]
[1731798387543,22.95605888,214.78,214.7,29.07865888]
[1731798387838,22.95605888,214.75,214.7,6.1226]
[1731798388219,22.95605888,214.73,214.7,6.1226]
[1731798388427,22.95605888,214.71,214.65,4.6586]
[1731798388626,22.95605888,214.67,214.59,6.1226]
[1731798388838,22.95605888,214.65,214.59,6.1226]
[1731798389338,22.95605888,214.64,214.59,6.1226]
[1731798390349,22.95605888,214.65,214.59,6.1226]
[1731798391643,22.95605888,214.69,214.6,22.95605888]
[1731798391838,22.95605888,214.72,214.64,22.95605888]
[1731798392241,22.95605888,214.76,214.69,22.95605888]
[1731798392454,22.95605888,214.78,214.7,22.95605888]
[1731798392654,22.95605888,214.75,214.68,22.95605888]
[1731798393058,22.95605888,214.75,214.66,22.95605888]
[1731798393245,22.95605888,214.69,214.64,16.1526]
[1731798393448,22.95605888,214.67,214.61,20.0]
[1731798393647,22.95605888,214.68,214.61,20.0]
[1731798393845,22.95605888,214.69,214.61,42.95605888]
[1731798395539,22.95605888,214.71,214.63,22.95605888]
[1731798395740,22.95605888,214.72,214.64,22.95605888]
[1731798395951,22.95605888,214.7,214.63,20.0]
[1731798396154,22.95605888,214.72,214.64,22.95605888]
[1731798396366,22.95605888,214.76,214.68,22.95605888]
[1731798396539,22.95605888,214.77,214.69,22.95605888]
[1731798396732,22.95605888,214.77,214.71,22.95605888]
[1731798396933,22.95605888,214.81,214.74,20.0]
[1731798397175,22.95605888,214.83,214.75,22.95605888]
[1731798397481,22.95605888,214.81,214.75,22.95605888]
[1731798398448,22.95605888,214.81,214.75,22.88705888]
[1731798398958,22.95605888,214.85,214.77,22.95605888]
[1731798399161,22.95605888,214.83,214.77,22.95605888]
[1731798399360,15.7639198,214.89,214.78,20.0]
[1731798399361,22.95605888,214.85,214.78,20.0]
[1731798399855,22.95605888,214.85,214.77,22.95605888]
[1731798400688,22.95605888,214.83,214.73,22.95605888]
[1731798400839,22.95605888,214.79,214.71,45.23125888]
[1731798401543,22.95605888,214.77,214.71,22.2752]
[1731798402961,22.95605888,214.75,214.71,6.1226]
[1731798403165,22.95605888,214.73,214.66,6.163]
[1731798403758,22.95605888,214.71,214.66,6.163]
[1731798406174,22.95605888,214.73,214.66,6.163]
[1731798406767,22.95605888,214.77,214.69,22.95605888]
[1731798406978,22.95605888,214.77,214.71,22.95605888]
[1731798407178,22.95605888,214.81,214.74,20.0]
[1731798407376,0.6430198,214.89,214.71,22.95605888]
[1731798407377,22.95605888,214.79,214.71,22.95605888]
[1731798407584,22.95605888,214.79,214.72,20.0]
[1731798408274,22.95605888,214.81,214.73,22.95605888]
[1731798408595,22.95605888,214.79,214.71,22.95605888]
[1731798408884,22.95605888,214.79,214.72,20.0]
[1731798409964,22.95605888,214.75,214.67,22.95605888]
[1731798410494,22.95605888,214.69,214.61,29.11905888]
[1731798411894,22.95605888,214.72,214.66,16.3048]
[1731798412098,22.95605888,214.74,214.67,42.95605888]
[1731798412301,22.95605888,214.77,214.7,22.95605888]
[1731798412503,22.95605888,214.79,214.71,22.95605888]
[1731798412668,22.95605888,214.79,214.72,22.95605888]
[1731798412985,16.4316,214.86,214.78,42.95605888]
[1731798412986,22.95605888,214.86,214.78,42.95605888]
[1731798413171,22.95605888,214.86,214.78,22.95605888]
[1731798413992,22.95605888,214.85,214.77,39.25245888]
[1731798415582,22.95605888,214.86,214.78,22.95605888]
[1731798415790,22.95605888,214.85,214.77,39.25245888]
[1731798416583,22.95605888,214.86,214.78,22.95605888]
[1731798416785,22.95605888,214.86,214.79,16.2949]
[1731798416987,0.5430198,214.89,214.82,22.95605888]
[1731798417287,0.5430198,214.89,214.8,20.0]
[1731798417288,23.49907868,214.89,214.81,22.95605888]
[1731798418076,23.49907868,214.89,214.86,22.95605888]
[1731798418077,0.5430198,214.89,214.86,22.95605888]
[1731798418392,0.5430198,214.89,214.86,29.11905888]
[1731798418975,0.5430198,214.89,214.87,4.6539]
[1731798420314,0.5430198,214.89,214.88,22.95605888]
[1731798421029,0.5430198,214.89,214.88,42.95605888]
[1731798421203,0.5430198,214.89,214.88,58.09965888]
[1731798422121,0.5430198,214.89,214.88,35.1436]
[1731798422419,0.5430198,214.89,214.88,58.09965888]
[1731798423627,0.5430198,214.89,214.88,81.87654288]
[1731798423799,22.95605888,215.04,214.97,22.95605888]
[1731798423995,4.6497,215.07,214.97,20.0]
[1731798424194,22.95605888,215.07,214.99,22.95605888]
[1731798424423,0.5430198,215.11,215.04,22.95605888]
[1731798424602,0.5430198,215.11,215.03,20.0]
[1731798424804,0.5430198,215.11,215.07,22.95605888]
[1731798425794,0.5430198,215.11,215.08,4.6494]
[1731798426023,0.5430198,215.11,215.08,16.2729]
[1731798426925,23.49907868,215.11,215.04,22.95605888]
[1731798427135,23.49907868,215.11,215.03,54.58205888]
[1731798427436,22.95605888,215.09,215.03,11.626]
[1731798427644,22.95605888,215.04,214.98,17.8751]
[1731798427951,22.95605888,214.99,214.88,16.2881]
[1731798428111,22.95605888,214.96,214.88,16.2881]
[1731798428310,4.6505,215.03,214.88,16.2881]
[1731798428614,22.95605888,214.99,214.88,16.2881]
[1731798428823,22.95605888,214.99,214.92,22.95605888]
[1731798429015,22.95605888,214.97,214.9,22.95605888]
[1731798429225,22.95605888,214.99,214.92,22.95605888]
[1731798429423,22.95605888,214.97,214.9,22.95605888]
[1731798429627,22.95605888,214.99,214.92,22.95605888]
[1731798429929,22.95605888,214.99,214.93,4.6526]
[1731798430548,22.95605888,214.95,214.87,17.881]
[1731798430835,37.13275054,214.94,214.87,17.881]
[1731798431208,37.13275054,215.0,214.92,37.13275054]
[1731798431815,37.13275054,214.98,214.92,41.78545054]
[1731798432109,37.13275054,215.04,214.96,37.13275054]
[1731798432531,0.5430198,215.11,215.02,37.13275054]
[1731798432842,37.13275054,215.1,215.02,37.13275054]
[1731798433413,0.5430198,215.11,215.04,37.13275054]
[1731798433613,37.13275054,215.1,215.02,37.13275054]
[1731798434115,0.5430198,215.11,215.04,37.13275054]
[1731798435224,0.5430198,215.11,215.05,4.65]
[1731798435451,0.5430198,215.11,215.05,16.2752]
[1731798436159,0.5430198,215.11,215.06,57.13275054]
[1731798436326,0.5430198,215.11,215.1,37.13275054]
[1731798436526,0.5430198,215.11,215.1,57.13275054]
[1731798437233,0.5430198,215.11,215.1,61.78175054]
[1731798438228,0.5430198,215.11,215.06,11.6246]
[1731798439760,0.5430198,215.11,215.07,37.13275054]
[1731798440847,0.5430198,215.11,215.09,37.13275054]
[1731798441046,0.5430198,215.11,215.1,20.0]
[1731798441351,0.5430198,215.11,215.1,24.649]
[1731798441651,0.5430198,215.11,215.1,61.78175054]
[1731798442177,0.5430198,215.11,215.1,77.88545054]
[1731798442457,0.5430198,215.11,215.1,40.8527]
[1731798442662,0.5430198,215.11,215.1,101.76233454]
[1731798442961,0.5430198,215.11,215.1,107.88123454]
[1731798443161,0.5430198,215.11,215.1,107.78123454]
[1731798443466,0.5430198,215.11,215.1,84.00435054]
[1731798443842,37.13275054,215.27,215.12,0.1]
[1731798444161,37.13275054,215.27,215.19,37.13275054]
[1731798444364,37.13275054,215.25,215.17,37.13275054]
[1731798444540,4.6454,215.27,215.14,37.13275054]
[1731798444541,37.13275054,215.22,215.14,37.13275054]
[1731798444743,37.13275054,215.22,215.11,20.0]
[1731798444744,37.13275054,215.2,215.12,37.13275054]
[1731798445142,37.13275054,215.13,215.05,11.6248]
[1731798445536,37.13275054,215.13,215.05,53.40745054]
[1731798446564,37.13275054,215.13,215.06,20.0]
[1731798446869,37.13275054,215.13,215.07,16.2737]
[1731798447669,37.13275054,215.11,215.03,37.13275054]
[1731798447869,37.13275054,215.07,215.0,4.6509]
[1731798448160,37.13275054,215.09,215.01,37.13275054]
[1731798449062,37.13275054,215.07,215.0,16.2789]
[1731798449444,4.6492,215.09,215.0,16.2789]
[1731798449445,37.13275054,215.09,215.01,37.13275054]
[1731798449964,37.13275054,215.09,215.0,16.2789]
[1731798450568,37.13275054,215.07,215.0,16.2789]
[1731798450744,22.8235967,215.07,215.0,16.2789]
[1731798451146,22.8235967,215.03,214.96,4.6519]
[1731798451584,22.8235967,215.05,214.96,4.6519]
[1731798452150,22.8235967,215.05,214.99,22.8235967]
[1731798452465,22.8235967,215.05,214.97,22.8235967]
[1731798452665,22.8235967,215.03,214.96,16.2819]
[1731798453777,22.8235967,215.01,214.94,6.4639]
[1731798453961,22.8235967,214.97,214.91,11.6326]
[1731798454160,22.8235967,214.95,214.87,27.4773967]
[1731798455164,22.8235967,214.97,214.89,22.8235967]
[1731798455368,22.8235967,214.99,214.91,22.8235967]
[1731798456166,22.8235967,214.99,214.92,16.285]
[1731798456748,22.8235967,215.03,214.95,22.8235967]
[1731798456961,22.8235967,215.07,214.99,22.8235967]
[1731798457158,22.8235967,215.09,215.01,22.8235967]
[1731798457548,22.8235967,215.07,214.96,20.0]
[1731798457751,22.8235967,215.09,215.01,22.8235967]
[1731798457948,22.8235967,215.09,215.02,4.6507]
[1731798458445,22.8235967,215.09,215.02,16.2775]
[1731798458650,22.8235967,215.14,215.06,22.8235967]
[1731798459078,22.8235967,215.12,215.04,22.8235967]
[1731798459761,22.8235967,215.12,215.05,4.65]
[1731798460172,27.4715967,215.15,215.07,22.8235967]
[1731798461254,23.776884,215.14,215.07,27.4731967]
[1731798461861,22.8235967,215.15,215.07,39.0972967]
[1731798462170,4.6476,215.17,215.07,39.0972967]
[1731798462171,22.8235967,215.17,215.09,22.8235967]
[1731798462471,22.8235967,215.24,215.16,22.8235967]
[1731798463781,22.8235967,215.22,215.16,11.6191]
[1731798464469,22.8235967,215.2,215.12,27.4719967]
[1731798464675,23.776884,215.15,215.08,4.6493]
[1731798464876,22.8235967,215.15,215.06,39.0975967]
[1731798465050,22.8235967,215.15,215.08,22.8235967]
[1731798465476,22.8235967,215.17,215.1,22.8235967]
[1731798465782,22.8235967,215.17,215.11,4.6487]
[1731798466579,22.8235967,215.15,215.1,11.6219]
[1731798466759,22.8235967,215.15,215.07,4.6495]
[1731798466964,22.8235967,215.13,215.07,4.6495]
[1731798467577,22.8235967,215.15,215.07,16.2736]
[1731798468890,22.8235967,215.19,215.12,22.8235967]
[1731798469058,22.8235967,215.21,215.12,22.8235967]
[1731798469663,22.8235967,215.19,215.12,22.8235967]
[1731798470080,22.8235967,215.17,215.08,22.8235967]
[1731798470383,22.8235967,215.18,215.08,22.8235967]
[1731798470797,22.8235967,215.16,215.08,22.8235967]
[1731798471154,22.8235967,215.16,215.09,4.6492]
[1731798471358,22.8235967,215.12,215.06,11.6243]
[1731798471559,23.776884,215.15,215.06,11.6243]
[1731798471560,22.8235967,215.1,215.06,16.2741]
[1731798472671,23.776884,215.15,215.06,16.2741]
[1731798472672,22.8235967,215.12,215.06,11.6243]
[1731798472901,22.8235967,215.14,215.06,34.4478967]
[1731798474900,22.8235967,215.14,215.06,39.0976967]
[1731798475900,37.8235967,215.16,215.08,22.8235967]
[1731798476694,22.8235967,215.14,215.06,39.0976967]
[1731798476900,22.8235967,215.15,215.08,22.8235967]
[1731798477987,37.8235967,215.16,215.09,4.6492]
[1731798478903,15.0,215.16,215.11,22.8235967]
[1731798479399,15.0,215.16,215.1,22.8235967]
[1731798479998,15.0,215.16,215.11,4.6487]
[1731798480788,22.8235967,215.15,215.09,11.623]
[1731798481394,22.8235967,215.15,215.09,16.2722]
[1731798481817,15.0,215.16,215.1,22.8235967]
[1731798481993,15.0,215.16,215.11,4.6487]
[1731798482396,15.0,215.16,215.11,16.2706]
[1731798483223,22.8235967,215.15,215.11,11.6219]
[1731798483590,22.8235967,215.15,215.11,16.2706]
[1731798484619,15.0,215.16,215.11,39.0941967]
[1731798485297,14.5,215.16,215.11,39.0941967]
[1731798486207,14.5,215.16,215.14,22.8235967]
[1731798487215,14.5,215.16,215.15,20.0]
[1731798487805,14.5,215.16,215.15,42.8235967]
[1731798488218,14.5,215.16,215.15,71.2483807]
[1731798488796,22.8235967,215.29,215.15,135.2235774]
[1731798488998,22.8235967,215.29,215.21,22.8235967]
[1731798489216,22.8235967,215.29,215.22,22.8235967]
[1731798489625,27.4682967,215.3,215.22,22.8235967]
[1731798489808,22.8235967,215.29,215.2,22.8235967]
[1731798490010,22.8235967,215.29,215.15,42.5599]
[1731798490011,22.8235967,215.21,215.15,22.5599]
[1731798490219,22.8235967,215.17,215.13,4.6482]
[1731798490522,22.8235967,215.19,215.13,4.6482]
[1731798490837,22.8235967,215.19,215.13,16.269]
[1731798491028,22.8235967,215.23,215.16,22.8235967]
[1731798491607,22.8235967,215.23,215.13,39.5107]
[1731798491608,22.8235967,215.26,215.19,22.8235967]
[1731798491803,22.8235967,215.29,215.21,22.8235967]
[1731798492315,22.8235967,215.29,215.22,27.4699967]
[1731798493724,22.8235967,215.31,215.23,22.8235967]
[1731798494027,22.8235967,215.31,215.22,16.2624]
[1731798494028,22.8235967,215.31,215.22,39.0859967]
[1731798494213,22.8235967,215.29,215.21,20.0]
[1731798494402,22.8235967,215.29,215.22,22.8235967]
[1731798494805,22.8235967,215.31,215.22,22.8235967]
[1731798495033,22.8235967,215.32,215.25,22.8235967]
[1731798495528,22.8235967,215.32,215.26,4.6455]
[1731798495836,22.8235967,215.3,215.24,16.2604]
[1731798496028,22.8235967,215.28,215.22,4.6463]
[1731798496531,22.8235967,215.28,215.21,22.8235967]
[1731798496737,23.776884,215.27,215.2,4.6468]
[1731798497740,22.8235967,215.26,215.19,22.8235967]
[1731798498031,23.776884,215.27,215.16,39.0902967]
[1731798498032,22.8235967,215.23,215.16,39.0902967]
[1731798499339,22.8235967,215.23,215.17,20.0]
[1731798499527,22.8235967,215.21,215.1,11.6221]
[1731798499839,22.8235967,215.19,215.11,22.8235967]
[1731798500615,22.8235967,215.19,215.12,16.2699]
[1731798500824,22.8235967,215.19,215.13,20.0]
[1731798501320,23.776884,215.18,215.1,4.6488]
[1731798501519,22.8235967,215.17,215.1,16.2713]
[1731798501732,15.9192,215.23,215.11,22.8235967]
[1731798501733,22.8235967,215.19,215.11,22.8235967]
[1731798502039,22.8235967,215.21,215.13,22.8235967]
[1731798502844,38.7427967,215.23,215.15,22.8235967]
[1731798503136,22.8235967,215.16,215.11,20.0]
[1731798503552,22.8235967,215.16,215.1,11.6224]
[1731798503725,22.8235967,215.14,215.1,11.6224]
[1731798503931,22.8235967,215.14,215.07,27.4731967]
[1731798504319,22.8235967,215.14,215.07,4.6496]
[1731798504839,22.8235967,215.12,215.07,4.6496]
[1731798505149,4.6479,215.15,215.07,16.2737]
[1731798505150,22.8235967,215.14,215.07,16.2737]
[1731798506139,22.8235967,215.12,215.07,16.2737]
[1731798506348,22.8235967,215.14,215.07,16.2737]
[1731798507744,22.8235967,215.16,215.08,22.8235967]
[1731798507951,22.8235967,215.12,215.07,11.6241]
[1731798508944,23.776884,215.13,215.03,11.6262]
[1731798508945,22.8235967,215.08,215.03,11.6262]
[1731798509135,22.8235967,215.08,215.03,16.2767]
[1731798509332,22.8235967,215.04,214.98,4.6514]
[1731798509652,22.8235967,215.02,214.97,11.6292]
[1731798510347,22.8235967,214.98,214.93,4.6525]
[1731798510862,22.8235967,214.94,214.86,22.8235967]
[1731798511755,22.8235967,214.94,214.87,4.6539]
[1731798511941,22.8235967,214.94,214.87,16.2888]
[1731798512244,22.8235967,214.94,214.88,20.0]
[1731798512448,22.8235967,214.94,214.87,16.2888]
[1731798515755,4.6525,214.94,214.82,34.4609967]
[1731798515931,22.8235967,214.88,214.83,4.6547]
[1731798516431,22.8235967,214.86,214.83,4.6547]
[1731798516861,22.8235967,214.86,214.82,11.6374]
[1731798517161,22.8235967,214.87,214.82,16.2924]
[1731798517351,22.8235967,214.91,214.84,22.8235967]
[1731798517666,22.8235967,214.9,214.83,22.8235967]
[1731798518243,22.8235967,214.91,214.84,39.1146967]
[1731798518749,22.8235967,214.93,214.86,22.8235967]
[1731798519172,22.8235967,214.97,214.9,22.8235967]
[1731798519835,38.3120967,214.98,214.9,22.8235967]
[1731798520232,22.8235967,214.96,214.9,11.6332]
[1731798520953,22.8235967,214.97,214.9,34.4567967]
[1731798521152,22.8235967,214.95,214.9,11.6332]
[1731798521543,22.8235967,214.97,214.9,11.6332]
[1731798521746,22.8235967,214.97,214.9,34.4567967]
[1731798521951,22.8235967,214.99,214.91,20.0]
[1731798522260,20.1869,215.03,214.88,27.9225]
[1731798522261,22.8235967,215.02,214.96,16.282]
[1731798522763,22.8235967,215.02,214.89,6.0283]
[1731798522764,22.8235967,214.98,214.9,11.6333]
[1731798522937,22.8235967,214.96,214.9,11.6333]
[1731798523138,22.8235967,214.99,214.92,22.8235967]
[1731798523439,22.8235967,214.97,214.9,39.1101967]
[1731798523942,22.8235967,214.95,214.9,16.2866]
[1731798524338,22.8235967,214.95,214.9,11.6333]
[1731798525763,22.8235967,214.95,214.88,22.8235967]
[1731798526667,22.8235967,214.97,214.9,22.8235967]
[1731798527057,22.8235967,214.99,214.9,22.8235967]
[1731798527458,22.8235967,214.99,214.91,20.0]
[1731798527854,22.8235967,214.99,214.92,16.285]
[1731798528378,22.8235967,214.97,214.92,16.285]
[1731798529561,22.8235967,214.93,214.87,11.6344]
[1731798529776,22.8235967,214.89,214.81,22.8235967]
[1731798529950,0.1,214.96,214.81,22.8235967]
[1731798529951,22.8235967,214.87,214.81,11.6378]
[1731798531168,22.8235967,214.87,214.79,33.5074967]
[1731798531548,22.8235967,214.87,214.79,45.1466967]
[1731798532768,22.8235967,214.86,214.79,45.1466967]
[1731798533856,22.8235967,214.88,214.8,22.8235967]
[1731798534269,22.8235967,214.92,214.84,22.8235967]
[1731798534571,22.8235967,214.91,214.83,22.8235967]
[1731798534772,22.8235967,214.89,214.82,22.8235967]
[1731798534976,22.8235967,214.88,214.8,20.0]
[1731798535277,22.8235967,214.89,214.82,20.0]
[1731798535451,22.8235967,214.89,214.83,4.6548]
[1731798535653,22.8235967,214.88,214.83,4.6548]
[1731798536066,22.8235967,214.89,214.83,4.6548]
[1731798536283,22.8235967,214.9,214.83,16.2919]
[1731798536480,22.8235967,214.92,214.84,22.8235967]
[1731798537159,22.8235967,214.93,214.85,22.8235967]
[1731798537887,22.8235967,214.93,214.86,16.2895]
[1731798538065,22.8235967,214.97,214.89,22.8235967]
[1731798538268,22.8235967,214.97,214.9,22.8235967]
[1731798538973,15.5363,215.02,214.92,22.8235967]
[1731798539162,22.8235967,215.03,214.95,22.8235967]
[1731798539483,22.8235967,215.04,214.96,22.8235967]
[1731798539892,22.8235967,215.04,214.96,27.4753967]
[1731798540190,22.8235967,215.04,214.96,39.1053967]
[1731798540677,22.8235967,215.08,215.0,22.8235967]
[1731798541078,22.8235967,215.1,215.02,22.8235967]
[1731798541482,22.8235967,215.14,215.06,22.8235967]
[1731798541873,22.8235967,215.14,215.06,27.4732967]
[1731798542598,22.8235967,215.18,215.1,22.8235967]
[1731798542990,27.4709967,215.18,215.1,22.8235967]
[1731798543178,22.8235967,215.16,215.08,22.8235967]
[1731798543601,22.8235967,215.14,215.06,34.4481967]
[1731798543777,4.6474,215.18,215.02,16.3464]
[1731798543778,22.8235967,215.1,215.02,16.3464]
[1731798543971,0.2,215.12,214.99,6.407]
[1731798544282,22.8235967,215.08,215.01,22.8235967]
[1731798544602,22.8235967,215.1,215.01,22.8235967]
[1731798544811,22.8235967,215.08,215.01,22.8235967]
[1731798545294,22.8235967,215.08,215.02,4.6507]
[1731798546898,22.8235967,215.08,215.02,16.2775]
[1731798547074,22.8235967,215.12,215.03,22.8235967]
[1731798547278,22.8235967,215.12,215.05,22.8235967]
[1731798547591,27.4717967,215.14,215.05,22.8235967]
[1731798547897,22.8235967,215.16,215.08,20.0]
[1731798548897,22.8235967,215.16,215.09,4.6492]
[1731798549110,22.8235967,215.16,215.09,27.4727967]
[1731798550577,22.8235967,215.24,215.15,22.8235967]
[1731798550917,22.8235967,215.24,215.17,22.8235967]
[1731798551798,22.8235967,215.24,215.15,22.8235967]
[1731798552587,22.8235967,215.24,215.16,16.2669]
[1731798553199,22.8235967,215.22,215.16,16.2669]
[1731798554010,22.8235967,215.2,215.12,22.8235967]
[1731798554309,22.8235967,215.22,215.14,22.8235967]
[1731798554689,22.8235967,215.22,215.14,27.4714967]
[1731798554892,4.646,215.24,215.15,22.8235967]
[1731798555102,22.8235967,215.25,215.17,22.8235967]
[1731798555288,22.8235967,215.26,215.19,22.8235967]
[1731798556406,22.8235967,215.26,215.19,4.647]
[1731798556610,22.8235967,215.2,215.14,11.6203]
[1731798556813,22.8235967,215.27,215.14,11.6203]
[1731798556814,22.8235967,215.18,215.14,11.6203]
[1731798556992,22.8235967,215.18,215.12,4.6485]
[1731798557388,46.6004807,215.19,215.12,39.0934967]
[1731798557611,22.8235967,215.22,215.14,22.8235967]
[1731798557911,22.8235967,215.24,215.16,22.8235967]
[1731798558213,46.6004807,215.25,215.16,22.8235967]
[1731798558444,22.8235967,215.21,215.16,11.6189]
[1731798558619,22.8235967,215.2,215.16,11.6189]
[1731798558793,22.8235967,215.22,215.16,11.6189]
[1731798559318,28.422684,215.25,215.17,42.8235967]
[1731798559319,22.8235967,215.25,215.17,42.8235967]
[1731798559493,22.8235967,215.25,215.18,22.8235967]
[1731798559915,22.8235967,215.25,215.17,42.8235967]
[1731798560315,22.8235967,215.25,215.18,22.8235967]
[1731798560502,22.8235967,215.27,215.19,22.8235967]
[1731798561015,23.776884,215.26,215.19,22.8235967]
[1731798561409,23.776884,215.26,215.17,20.0]
[1731798561410,22.8235967,215.25,215.18,39.0888967]
[1731798561799,46.6004807,215.26,215.19,22.8235967]
[1731798562000,22.8235967,215.26,215.19,22.8235967]
[1731798563308,22.8235967,215.26,215.2,16.2639]
[1731798563629,22.8235967,215.27,215.21,6.0306]
[1731798563929,22.8235967,215.29,215.21,28.8541967]
[1731798566415,22.8235967,215.29,215.22,16.2624]
[1731798566832,14.2364201,215.29,215.22,16.2624]
[1731798567333,4.6445,215.31,215.22,16.2624]
[1731798567334,14.2364201,215.31,215.23,14.2364201]
[1731798568038,14.7794399,215.33,215.25,14.2364201]
[1731798568238,0.5430198,215.33,215.32,40.2670201]
[1731798568408,18.574327,215.49,215.33,36.254]
[1731798568409,14.2364201,215.47,215.33,36.254]
[1731798568607,14.2364201,215.47,215.4,14.2364201]
[1731798568934,22.73885132,215.47,215.39,22.73885132]
[1731798569114,22.73885132,215.47,215.41,22.73885132]
[1731798569308,22.73885132,215.47,215.39,22.73885132]
[1731798569722,22.73885132,215.45,215.37,22.73885132]
[1731798569918,22.73885132,215.43,215.35,22.73885132]
[1731798570654,22.73885132,215.43,215.36,4.6433]
[1731798574036,27.38075132,215.43,215.36,4.6433]
[1731798574638,22.73885132,215.43,215.36,4.6433]
[1731798575024,23.776884,215.44,215.37,22.73885132]
[1731798577040,28.418584,215.44,215.37,22.73885132]
[1731798579049,4.6417,215.44,215.37,27.38195132]
[1731798579862,22.73885132,215.43,215.36,34.34725132]
[1731798580030,22.73885132,215.43,215.36,16.2517]
[1731798580225,22.73885132,215.43,215.36,34.34725132]
[1731798580453,23.776884,215.42,215.36,34.34725132]
[1731798580841,22.73885132,215.41,215.33,24.6439]
[1731798581036,4.6417,215.44,215.29,22.73885132]
[1731798581037,22.73885132,215.36,215.29,22.73885132]
[1731798581234,23.776884,215.43,215.26,6.0306]
[1731798581235,22.73885132,215.31,215.26,6.0306]
[1731798581550,21.3137,215.41,215.26,6.0306]
[1731798581551,22.73885132,215.35,215.28,22.73885132]
[1731798581748,22.73885132,215.36,215.28,22.73885132]
[1731798582060,22.73885132,215.35,215.28,22.73885132]
[1731798582259,22.73885132,215.35,215.27,22.73885132]
[1731798582429,22.73885132,215.36,215.29,22.73885132]
[1731798582630,22.73885132,215.39,215.31,22.73885132]
[1731798582825,22.73885132,215.39,215.32,22.73885132]
[1731798583036,22.73885132,215.39,215.31,22.73885132]
[1731798583662,22.73885132,215.39,215.29,11.6122]
[1731798583663,22.73885132,215.35,215.29,11.6122]
[1731798583955,22.73885132,215.36,215.29,38.99585132]
[1731798584334,46.51573532,215.38,215.31,22.73885132]
[1731798585152,4.6431,215.37,215.31,22.73885132]
[1731798585657,4.6431,215.37,215.3,4.6445]
[1731798585957,46.51573532,215.38,215.31,22.73885132]
[1731798586146,27.38135132,215.4,215.33,22.73885132]
[1731798586345,22.73885132,215.42,215.33,22.73885132]
[1731798586775,22.73885132,215.38,215.31,22.73885132]
[1731798587960,93.1934,215.58,215.38,20.0]
[1731798587961,0.5430198,215.55,215.38,20.0]
[1731798588163,22.73885132,215.51,215.44,22.73885132]
[1731798588340,22.73885132,215.51,215.42,22.73885132]
[1731798588544,22.73885132,215.49,215.42,22.73885132]
[1731798589862,22.73885132,215.43,215.34,38.99145132]
[1731798590256,22.73885132,215.47,215.4,22.73885132]
[1731798590864,23.776884,215.46,215.39,14.21383751]
[1731798591366,23.776884,215.46,215.39,18.85653751]
[1731798592654,28.418084,215.46,215.39,18.85653751]
[1731798593156,0.2,215.53,215.39,18.85653751]
[1731798593157,18.85453751,215.49,215.41,14.21383751]
[1731798593358,11.5987,215.54,215.39,16.2495]
[1731798593359,18.85403751,215.51,215.43,18.85563751]
[1731798593757,14.21383751,215.49,215.43,4.6418]
[1731798594067,14.21383751,215.49,215.41,18.85593751]
[1731798595069,14.21383751,215.51,215.41,30.46163751]
[1731798595263,23.776884,215.5,215.43,14.21383751]
[1731798595576,14.21383751,215.51,215.43,14.21383751]
[1731798596249,14.21383751,215.51,215.43,30.46003751]
[1731798596461,18.85363751,215.53,215.43,30.46003751]
[1731798597171,18.85363751,215.53,215.45,14.21383751]
[1731798597472,18.85363751,215.53,215.46,4.6412]
[1731798598169,14.21383751,215.57,215.49,14.21383751]
[1731798598377,4.6391,215.56,215.49,14.21383751]
[1731798598762,18.85273751,215.57,215.49,14.21383751]
[1731798599378,18.85273751,215.57,215.49,18.85423751]
[1731798599957,18.85273751,215.57,215.49,30.45563751]
[1731798601579,18.85273751,215.57,215.43,36.2464]
[1731798601761,18.85273751,215.57,215.49,14.21383751]
[1731798602775,4.6389,215.57,215.51,14.21383751]
[1731798603358,4.6389,215.57,215.49,11.6014]
[1731798603359,5.1823198,215.55,215.49,11.6014]
[1731798603886,23.776884,215.52,215.45,11.6035]
[1731798604177,23.776884,215.5,215.43,18.85553751]
[1731798604476,23.776884,215.54,215.47,14.21383751]
[1731798604864,5.1823198,215.55,215.49,14.21383751]
[1731798605461,5.1823198,215.55,215.49,18.85433751]